[Event "World Junior Chess Championship U20 2022"]
[White "Sitbon, Itay"]
[Black "Vagman, Roy"]
[WhiteFideId "2820706"]
[BlackFideId "2828995"]
[WhiteElo "2133"]
[BlackElo "2274"]
[Result "1/2-1/2"]
[Round "03"]
[TimeControl "5400+30"]
[Date "2022.10.13"]
[WhiteClock "0:11:40"]
[BlackClock "0:06:39"]

1. Nf3 {[%clk 1:30:56]}  d5 {[%clk 1:30:37]} 2. d4 {[%clk 1:30:09]}  Nf6 {[%clk 1:30:58]} 3. g3 {[%clk 1:29:16]}  e6 {[%clk 1:28:40]} 4. Bg2 {[%clk 1:29:34]}  b5 {[%clk 1:27:52]} 5. O-O {[%clk 1:27:46]}  a5 {[%clk 1:25:22]} 6. a4 {[%clk 1:26:59]}  b4 {[%clk 1:24:42]} 7. c4 {[%clk 1:25:58]}  bxc3 {[%clk 1:22:04]} 8. bxc3 {[%clk 1:25:51]}  Bd6 {[%clk 1:20:16]} 9. Ba3 {[%clk 1:16:17]}  Ba6 {[%clk 1:19:03]} 10. Re1 {[%clk 1:15:34]}  Nbd7 {[%clk 1:17:51]} 11. Nfd2 {[%clk 1:14:53]}  O-O {[%clk 1:09:48]} 12. e4 {[%clk 1:14:50]}  dxe4 {[%clk 1:09:52]} 13. Nxe4 {[%clk 1:14:35]}  Nxe4 {[%clk 1:10:08]} 14. Bxe4 {[%clk 1:14:50]}  Rb8 {[%clk 1:10:08]} 15. Qh5 {[%clk 1:11:05]}  Nf6 {[%clk 0:59:38]} 16. Qxa5 {[%clk 1:11:24]}  Nxe4 {[%clk 0:59:59]} 17. Qxa6 {[%clk 1:11:41]}  Ng5 {[%clk 1:00:21]} 18. Qc6 {[%clk 1:07:06]}  Bxa3 {[%clk 0:51:48]} 19. Nxa3 {[%clk 1:06:18]}  Rb2 {[%clk 0:52:04]} 20. Rf1 {[%clk 0:55:25]}  Qf6 {[%clk 0:51:25]} 21. h4 {[%clk 0:50:39]}  Qf3 {[%clk 0:19:05]} 22. Qxf3 {[%clk 0:50:15]}  Nxf3+ {[%clk 0:18:19]} 23. Kg2 {[%clk 0:50:44]}  Nd2 {[%clk 0:18:34]} 24. Rfe1 {[%clk 0:49:29]}  Ra8 {[%clk 0:18:27]} 25. Nb5 {[%clk 0:42:39]}  c5 {[%clk 0:15:09]} 26. dxc5 {[%clk 0:36:06]}  Nb3 {[%clk 0:15:20]} 27. Rab1 {[%clk 0:27:14]}  Rxb1 {[%clk 0:15:42]} 28. Rxb1 {[%clk 0:27:43]}  Nxc5 {[%clk 0:16:03]} 29. Nc7 {[%clk 0:26:29]}  Rc8 {[%clk 0:16:04]} 30. a5 {[%clk 0:25:22]}  g6 {[%clk 0:16:03]} 31. Nb5 {[%clk 0:25:28]}  Ra8 {[%clk 0:14:35]} 32. Nc7 {[%clk 0:19:24]}  Rxa5 {[%clk 0:14:08]} 33. Rb8+ {[%clk 0:19:39]}  Kg7 {[%clk 0:14:33]} 34. Ne8+ {[%clk 0:20:02]}  Kf8 {[%clk 0:13:40]} 35. Nf6+ {[%clk 0:20:10]}  Ke7 {[%clk 0:09:47]} 36. Nxh7 {[%clk 0:20:05]}  f6 {[%clk 0:05:28]} 37. g4 {[%clk 0:16:42]}  e5 {[%clk 0:04:01]} 38. g5 {[%clk 0:13:25]}  f5 {[%clk 0:04:20]} 39. Nf6 {[%clk 0:13:16]}  Ne6 {[%clk 0:03:12]} 40. Rb7+ {[%clk 0:11:17]}  Kd6 {[%clk 0:02:48]} 41. Rb6+ {[%clk 0:11:21]}  Ke7 {[%clk 0:01:15]} 42. c4 {[%clk 0:07:53]}  Nf4+ {[%clk 0:30:05]} 43. Kh2 {[%clk 0:37:07]}  Ra2 {[%clk 0:28:41]} 44. Nd5+ {[%clk 0:33:54]}  Nxd5 {[%clk 0:28:54]} 45. cxd5 {[%clk 0:34:19]}  Rxf2+ {[%clk 0:26:19]} 46. Kg3 {[%clk 0:34:47]}  Rd2 {[%clk 0:16:57]} 47. Re6+ {[%clk 0:29:35]}  Kd7 {[%clk 0:14:12]} 48. Rxe5 {[%clk 0:25:00]}  Rd3+ {[%clk 0:14:13]} 49. Kg2 {[%clk 0:24:35]}  Kd6 {[%clk 0:11:23]} 50. Re6+ {[%clk 0:24:47]}  Kxd5 {[%clk 0:11:50]} 51. Rxg6 {[%clk 0:25:07]}  Ke4 {[%clk 0:12:16]} 52. Re6+ {[%clk 0:22:54]}  Kf4 {[%clk 0:12:44]} 53. g6 {[%clk 0:22:21]}  Rd2+ {[%clk 0:12:29]} 54. Kf1 {[%clk 0:20:44]}  Rd1+ {[%clk 0:09:24]} 55. Kf2 {[%clk 0:20:04]}  Rd2+ {[%clk 0:09:25]} 56. Re2 {[%clk 0:19:31]}  Rd8 {[%clk 0:07:31]} 57. Kg1 {[%clk 0:11:52]}  Kg3 {[%clk 0:06:45]} 58. Rg2+ {[%clk 0:11:44]}  Kh3 {[%clk 0:06:15]} 59. Rh2+ {[%clk 0:11:19]}  Kg3 {[%clk 0:06:21]} 60. Rg2+ {[%clk 0:11:40]}  Kh3 {[%clk 0:06:39]} 1/2-1/2


[Site "http://www.chessbomb.com"]

[Event "World Junior Chess Championship U20 2022"]
[White "Nouri, Alekhine"]
[Black "Stolyarsky, Yegor"]
[WhiteFideId "5216184"]
[BlackFideId "2814595"]
[WhiteElo "2251"]
[BlackElo "1987"]
[Result "1/2-1/2"]
[Round "03"]
[TimeControl "5400+30"]
[Date "2022.10.13"]
[WhiteClock "0:12:13"]
[BlackClock "0:04:37"]

1. e4 {[%clk 1:29:41]}  e5 {[%clk 1:29:54]} 2. Nf3 {[%clk 1:29:56]}  Nc6 {[%clk 1:30:17]} 3. d4 {[%clk 1:30:09]}  exd4 {[%clk 1:30:32]} 4. Nxd4 {[%clk 1:30:33]}  Nf6 {[%clk 1:30:51]} 5. Nxc6 {[%clk 1:30:49]}  bxc6 {[%clk 1:31:07]} 6. Nd2 {[%clk 1:31:02]}  g6 {[%clk 1:28:33]} 7. e5 {[%clk 1:24:34]}  Qe7 {[%clk 1:28:38]} 8. Nf3 {[%clk 1:23:55]}  Bg7 {[%clk 1:26:48]} 9. Qe2 {[%clk 1:15:07]}  Ng4 {[%clk 1:22:46]} 10. Bg5 {[%clk 1:14:59]}  Qc5 {[%clk 1:11:20]} 11. O-O-O {[%clk 0:56:14]}  O-O {[%clk 1:09:35]} 12. Nd4 {[%clk 0:51:31]}  d6 {[%clk 1:03:31]} 13. f4 {[%clk 0:27:34]}  dxe5 {[%clk 1:01:24]} 14. h3 {[%clk 0:22:49]}  Ne3 {[%clk 0:42:30]} 15. Qxe3 {[%clk 0:12:44]}  exd4 {[%clk 0:42:50]} 16. Qe7 {[%clk 0:12:30]}  Qb6 {[%clk 0:37:22]} 17. Bc4 {[%clk 0:10:21]}  c5 {[%clk 0:34:21]} 18. Rhe1 {[%clk 0:10:25]}  d3 {[%clk 0:31:43]} 19. Re5 {[%clk 0:05:33]}  Ba6 {[%clk 0:24:48]} 20. Bxd3 {[%clk 0:02:07]}  Bxd3 {[%clk 0:18:01]} 21. Rxd3 {[%clk 0:02:35]}  h6 {[%clk 0:17:45]} 22. Bh4 {[%clk 0:02:47]}  Qb4 {[%clk 0:16:41]} 23. Bg3 {[%clk 0:02:13]}  Bxe5 {[%clk 0:14:30]} 24. fxe5 {[%clk 0:02:40]}  Rab8 {[%clk 0:12:50]} 25. b3 {[%clk 0:00:39]}  c4 {[%clk 0:10:56]} 26. Qxb4 {[%clk 0:01:02]}  Rxb4 {[%clk 0:11:19]} 27. Rd7 {[%clk 0:00:55]}  cxb3 {[%clk 0:10:10]} 28. axb3 {[%clk 0:01:24]}  Rc8 {[%clk 0:09:25]} 29. Kd2 {[%clk 0:01:03]}  Rb6 {[%clk 0:08:14]} 30. Bf4 {[%clk 0:00:43]}  g5 {[%clk 0:07:17]} 31. Be3 {[%clk 0:01:02]}  Re6 {[%clk 0:07:38]} 32. Rd5 {[%clk 0:01:04]}  a6 {[%clk 0:05:53]} 33. Bd4 {[%clk 0:00:34]}  Kh7 {[%clk 0:04:46]} 34. b4 {[%clk 0:00:53]}  Kg6 {[%clk 0:05:00]} 35. c3 {[%clk 0:01:06]}  Rce8 {[%clk 0:04:34]} 36. Rc5 {[%clk 0:01:14]}  R8e7 {[%clk 0:04:48]} 37. g4 {[%clk 0:01:13]}  Rd7 {[%clk 0:04:50]} 38. Kd3 {[%clk 0:01:18]}  f5 {[%clk 0:03:47]} 39. Ra5 {[%clk 0:00:47]}  fxg4 {[%clk 0:03:36]} 40. hxg4 {[%clk 0:01:13]}  Rf7 {[%clk 0:01:59]} 41. Be3 {[%clk 0:24:55]}  h5 {[%clk 0:29:01]} 42. gxh5+ {[%clk 0:25:13]}  Kxh5 {[%clk 0:29:04]} 43. Ke4 {[%clk 0:25:29]}  g4 {[%clk 0:26:20]} 44. Bf4 {[%clk 0:22:50]}  Kg6 {[%clk 0:23:25]} 45. c4 {[%clk 0:21:49]}  Rb6 {[%clk 0:22:32]} 46. Ra1 {[%clk 0:21:04]}  Rd7 {[%clk 0:19:41]} 47. Rg1 {[%clk 0:20:33]}  Rxb4 {[%clk 0:19:05]} 48. Rxg4+ {[%clk 0:16:51]}  Kh7 {[%clk 0:11:35]} 49. Rh4+ {[%clk 0:12:02]}  Kg8 {[%clk 0:11:50]} 50. e6 {[%clk 0:11:24]}  Rxc4+ {[%clk 0:10:00]} 51. Kf5 {[%clk 0:10:19]}  Re7 {[%clk 0:07:21]} 52. Rg4+ {[%clk 0:10:28]}  Rg7 {[%clk 0:07:39]} 53. e7 {[%clk 0:08:35]}  Rxf4+ {[%clk 0:07:52]} 54. Rxf4 {[%clk 0:08:57]}  Rxe7 {[%clk 0:06:42]} 55. Ra4 {[%clk 0:09:24]}  Kf7 {[%clk 0:04:24]} 56. Rxa6 {[%clk 0:09:40]}  Rd7 {[%clk 0:04:09]} 57. Ke5 {[%clk 0:07:32]}  Ke7 {[%clk 0:03:59]} 58. Ra7 {[%clk 0:07:33]}  Kd8 {[%clk 0:02:49]} 59. Ra8+ {[%clk 0:07:59]}  Ke7 {[%clk 0:03:15]} 60. Ra7 {[%clk 0:08:22]}  Kf7 {[%clk 0:03:40]} 61. Rb7 {[%clk 0:08:30]}  Ke8 {[%clk 0:02:49]} 62. Rb8+ {[%clk 0:08:29]}  Ke7 {[%clk 0:03:14]} 63. Rb7 {[%clk 0:08:52]}  Kf7 {[%clk 0:03:28]} 64. Ra7 {[%clk 0:09:18]}  Re7+ {[%clk 0:03:44]} 65. Kf5 {[%clk 0:09:24]}  Ke8 {[%clk 0:03:36]} 66. Ra1 {[%clk 0:09:12]}  Kd7 {[%clk 0:02:44]} 67. Rd1+ {[%clk 0:09:34]}  Kc8 {[%clk 0:02:39]} 68. Rc1 {[%clk 0:07:09]}  Re2 {[%clk 0:02:50]} 69. Kf6 {[%clk 0:06:41]}  Re3 {[%clk 0:01:33]} 70. Rc2 {[%clk 0:06:58]}  Kd7 {[%clk 0:01:47]} 71. Rd2+ {[%clk 0:07:08]}  Kc6 {[%clk 0:01:58]} 72. Rc2+ {[%clk 0:07:35]}  Kb6 {[%clk 0:02:25]} 73. Rb2+ {[%clk 0:07:55]}  Ka7 {[%clk 0:02:45]} 74. Rc2 {[%clk 0:08:17]}  Kb8 {[%clk 0:02:51]} 75. Rb2+ {[%clk 0:08:42]}  Kc8 {[%clk 0:03:19]} 76. Rc2 {[%clk 0:09:03]}  Re1 {[%clk 0:03:43]} 77. Kf5 {[%clk 0:09:10]}  Re7 {[%clk 0:03:57]} 78. Rc1 {[%clk 0:09:31]}  Rd7 {[%clk 0:03:48]} 79. Ke6 {[%clk 0:09:50]}  Rd6+ {[%clk 0:04:05]} 80. Ke5 {[%clk 0:10:17]}  Kd7 {[%clk 0:04:09]} 81. Rc4 {[%clk 0:05:55]}  Rd1 {[%clk 0:04:20]} 82. Ke4 {[%clk 0:06:18]}  Rd6 {[%clk 0:03:57]} 83. Ke5 {[%clk 0:06:36]}  Rh6 {[%clk 0:03:45]} 84. Rd4+ {[%clk 0:06:00]}  Kc6 {[%clk 0:03:59]} 85. Rc4+ {[%clk 0:06:22]}  Kb6 {[%clk 0:04:20]} 86. Rc1 {[%clk 0:06:44]}  c5 {[%clk 0:00:49]} 87. Kd5 {[%clk 0:07:05]}  Rh5+ {[%clk 0:00:59]} 88. Kc4 {[%clk 0:07:31]}  Rh4+ {[%clk 0:01:22]} 89. Kc3 {[%clk 0:07:56]}  Rh3+ {[%clk 0:00:43]} 90. Kc4 {[%clk 0:07:34]}  Rh4+ {[%clk 0:01:08]} 91. Kc3 {[%clk 0:07:59]}  Rb4 {[%clk 0:01:33]} 92. Rh1 {[%clk 0:08:12]}  Ra4 {[%clk 0:01:47]} 93. Rh8 {[%clk 0:08:26]}  Kb7 {[%clk 0:02:01]} 94. Rg8 {[%clk 0:08:48]}  Ra1 {[%clk 0:02:05]} 95. Rg6 {[%clk 0:09:07]}  Rc1+ {[%clk 0:02:14]} 96. Kb2 {[%clk 0:09:29]}  Rh1 {[%clk 0:02:16]} 97. Kc3 {[%clk 0:09:50]}  Rh4 {[%clk 0:02:23]} 98. Rf6 {[%clk 0:10:11]}  Rg4 {[%clk 0:02:40]} 99. Rh6 {[%clk 0:10:35]}  Rf4 {[%clk 0:03:01]} 100. Rg6 {[%clk 0:10:59]}  Rh4 {[%clk 0:03:01]} 101. Rf6 {[%clk 0:11:24]}  Rg4 {[%clk 0:03:51]} 102. Rh6 {[%clk 0:11:49]}  Rf4 {[%clk 0:04:14]} 103. Rg6 {[%clk 0:12:13]}  Rh4 {[%clk 0:04:37]} 1/2-1/2


[Site "http://www.chessbomb.com"]

[Event "World Junior Chess Championship U20 2022"]
[White "Urbani, Gabriel"]
[Black "Raahul, V S"]
[WhiteFideId "2830138"]
[BlackFideId "25035525"]
[WhiteElo "2129"]
[BlackElo "2333"]
[Result "1/2-1/2"]
[Round "03"]
[TimeControl "5400+30"]
[Date "2022.10.13"]
[WhiteClock "0:02:46"]
[BlackClock "0:07:54"]

1. e4 {[%clk 1:30:55]}  e5 {[%clk 1:30:36]} 2. Nf3 {[%clk 1:31:18]}  Nc6 {[%clk 1:30:36]} 3. Bb5 {[%clk 1:31:40]}  g6 {[%clk 1:29:29]} 4. c3 {[%clk 1:31:58]}  d6 {[%clk 1:27:46]} 5. d4 {[%clk 1:32:07]}  Bd7 {[%clk 1:28:10]} 6. O-O {[%clk 1:32:08]}  Bg7 {[%clk 1:28:35]} 7. Be3 {[%clk 1:31:19]}  Nf6 {[%clk 1:25:16]} 8. Nbd2 {[%clk 1:27:51]}  Qe7 {[%clk 1:16:11]} 9. Re1 {[%clk 1:26:26]}  O-O {[%clk 1:15:10]} 10. Bd3 {[%clk 1:10:14]}  Nh5 {[%clk 1:09:49]} 11. d5 {[%clk 1:07:26]}  Nd8 {[%clk 1:09:53]} 12. c4 {[%clk 1:06:10]}  c5 {[%clk 1:00:37]} 13. dxc6 {[%clk 1:04:25]}  bxc6 {[%clk 1:00:52]} 14. b4 {[%clk 1:02:49]}  Ne6 {[%clk 0:59:49]} 15. Rc1 {[%clk 0:59:02]}  c5 {[%clk 0:49:42]} 16. bxc5 {[%clk 0:57:48]}  dxc5 {[%clk 0:50:05]} 17. Nb1 {[%clk 0:56:57]}  Nd4 {[%clk 0:47:10]} 18. Nc3 {[%clk 0:55:16]}  Nf6 {[%clk 0:43:35]} 19. Bxd4 {[%clk 0:51:01]}  exd4 {[%clk 0:39:02]} 20. Nd5 {[%clk 0:49:56]}  Qd8 {[%clk 0:38:32]} 21. Nd2 {[%clk 0:46:24]}  Be6 {[%clk 0:33:18]} 22. Nb3 {[%clk 0:44:15]}  Rc8 {[%clk 0:32:43]} 23. h3 {[%clk 0:39:42]}  Nh5 {[%clk 0:24:34]} 24. Qd2 {[%clk 0:38:22]}  Be5 {[%clk 0:23:31]} 25. f4 {[%clk 0:35:16]}  Bxd5 {[%clk 0:23:31]} 26. fxe5 {[%clk 0:35:36]}  Ba8 {[%clk 0:22:55]} 27. Be2 {[%clk 0:32:08]}  Ng7 {[%clk 0:22:39]} 28. Bg4 {[%clk 0:30:02]}  Rc6 {[%clk 0:21:32]} 29. Rb1 {[%clk 0:23:46]}  Qe7 {[%clk 0:19:31]} 30. Qf4 {[%clk 0:22:51]}  Ra6 {[%clk 0:17:31]} 31. Rb2 {[%clk 0:20:49]}  Rb6 {[%clk 0:16:17]} 32. Rf2 {[%clk 0:20:10]}  h5 {[%clk 0:16:12]} 33. Bd1 {[%clk 0:19:09]}  Re6 {[%clk 0:15:25]} 34. Bc2 {[%clk 0:16:23]}  Rxe5 {[%clk 0:14:37]} 35. Nd2 {[%clk 0:16:11]}  g5 {[%clk 0:08:12]} 36. Qg3 {[%clk 0:10:47]}  f5 {[%clk 0:08:03]} 37. Ref1 {[%clk 0:11:16]}  f4 {[%clk 0:07:37]} 38. Qa3 {[%clk 0:11:45]}  h4 {[%clk 0:05:20]} 39. Rb1 {[%clk 0:11:13]}  Bc6 {[%clk 0:05:33]} 40. Rf3 {[%clk 0:07:25]}  Nh5 {[%clk 0:03:41]} 41. Rfb3 {[%clk 0:06:33]}  Ng3 {[%clk 0:29:16]} 42. Rb8 {[%clk 0:35:41]}  Rxb8 {[%clk 0:28:39]} 43. Rxb8+ {[%clk 0:36:08]}  Kg7 {[%clk 0:29:01]} 44. Qa5 {[%clk 0:32:53]}  Bxe4 {[%clk 0:16:28]} 45. Bxe4 {[%clk 0:32:40]}  Nxe4 {[%clk 0:16:55]} 46. Nxe4 {[%clk 0:32:13]}  Rxe4 {[%clk 0:17:05]} 47. Qa6 {[%clk 0:31:24]}  Re1+ {[%clk 0:10:13]} 48. Kh2 {[%clk 0:31:41]}  f3 {[%clk 0:07:57]} 49. Rb7 {[%clk 0:30:12]}  f2 {[%clk 0:08:22]} 50. Rxe7+ {[%clk 0:30:09]}  Rxe7 {[%clk 0:08:47]} 51. Qd6 {[%clk 0:30:10]}  f1=Q {[%clk 0:07:26]} 52. Qxe7+ {[%clk 0:30:29]}  Kg6 {[%clk 0:07:54]} 53. Qxc5 {[%clk 0:29:19]}  Qf4+ {[%clk 0:06:13]} 54. Kh1 {[%clk 0:29:33]}  d3 {[%clk 0:05:48]} 55. Qc6+ {[%clk 0:29:33]}  Qf6 {[%clk 0:06:10]} 56. Qe4+ {[%clk 0:29:50]}  Qf5 {[%clk 0:06:37]} 57. Qe8+ {[%clk 0:29:38]}  Kf6 {[%clk 0:05:58]} 58. Qc6+ {[%clk 0:29:04]}  Ke7 {[%clk 0:06:23]} 59. Qc7+ {[%clk 0:26:47]}  Qd7 {[%clk 0:06:29]} 60. Qc5+ {[%clk 0:26:53]}  Kf6 {[%clk 0:06:37]} 61. Qf2+ {[%clk 0:26:58]}  Kg6 {[%clk 0:06:37]} 62. Qd2 {[%clk 0:25:32]}  Kf5 {[%clk 0:07:06]} 63. c5 {[%clk 0:23:10]}  Ke4 {[%clk 0:07:06]} 64. Qb4+ {[%clk 0:20:16]}  Qd4 {[%clk 0:06:07]} 65. Qb7+ {[%clk 0:20:16]}  Qd5 {[%clk 0:05:45]} 66. Qb4+ {[%clk 0:16:26]}  Ke3 {[%clk 0:06:03]} 67. Qe1+ {[%clk 0:16:26]}  Kd4 {[%clk 0:06:29]} 68. Qg1+ {[%clk 0:15:36]}  Kc4 {[%clk 0:06:47]} 69. c6 {[%clk 0:13:49]}  d2 {[%clk 0:05:48]} 70. c7 {[%clk 0:13:36]}  Qc6 {[%clk 0:06:09]} 71. Qb1 {[%clk 0:10:37]}  Kd4 {[%clk 0:05:03]} 72. Qb2+ {[%clk 0:09:43]}  Kd3 {[%clk 0:05:19]} 73. Qa3+ {[%clk 0:09:43]}  Kc2 {[%clk 0:05:40]} 74. Qb3+ {[%clk 0:09:47]}  Kc1 {[%clk 0:06:01]} 75. Qa3+ {[%clk 0:09:55]}  Kd1 {[%clk 0:05:40]} 76. Qf3+ {[%clk 0:04:38]}  Qxf3 {[%clk 0:06:05]} 77. gxf3 {[%clk 0:05:03]}  Ke2 {[%clk 0:06:33]} 78. c8=Q {[%clk 0:05:23]}  d1=Q+ {[%clk 0:06:56]} 79. Kh2 {[%clk 0:05:41]}  Qd2 {[%clk 0:06:58]} 80. Kh1 {[%clk 0:03:20]}  Qe1+ {[%clk 0:07:08]} 81. Kh2 {[%clk 0:03:46]}  Kf1 {[%clk 0:07:05]} 82. Qg4 {[%clk 0:03:26]}  Qf2+ {[%clk 0:06:34]} 83. Kh1 {[%clk 0:03:55]}  Qg3 {[%clk 0:06:56]} 84. Qc4+ {[%clk 0:04:06]}  Kf2 {[%clk 0:07:24]} 85. Qc2+ {[%clk 0:03:15]}  Kxf3 {[%clk 0:07:51]} 86. Qd3+ {[%clk 0:03:13]}  Kf4 {[%clk 0:08:14]} 87. Qd4+ {[%clk 0:03:14]}  Kf5 {[%clk 0:08:41]} 88. Qd5+ {[%clk 0:02:42]}  Qe5 {[%clk 0:08:53]} 89. Qf7+ {[%clk 0:02:56]}  Ke4 {[%clk 0:08:55]} 90. Qxa7 {[%clk 0:02:49]}  Qd5 {[%clk 0:08:00]} 91. Qf2 {[%clk 0:02:46]}  Ke5+ {[%clk 0:07:54]} 1/2-1/2


[Site "http://www.chessbomb.com"]

[Event "World Junior Chess Championship U20 2022"]
[White "Bettalli, Francesco"]
[Black "Vairo, Rocco Enrico"]
[WhiteFideId "2816453"]
[BlackFideId "2839437"]
[WhiteElo "2267"]
[BlackElo "1960"]
[Result "1/2-1/2"]
[Round "03"]
[TimeControl "5400+30"]
[Date "2022.10.13"]
[WhiteClock "1:15:40"]
[BlackClock "0:29:24"]

1. e4 {[%clk 1:30:59]}  c5 {[%clk 1:27:20]} 2. Nc3 {[%clk 1:31:21]}  Nc6 {[%clk 1:27:39]} 3. Bb5 {[%clk 1:31:45]}  Nd4 {[%clk 1:28:03]} 4. Nf3 {[%clk 1:32:12]}  e6 {[%clk 1:28:24]} 5. O-O {[%clk 1:32:35]}  a6 {[%clk 1:28:37]} 6. Bd3 {[%clk 1:33:04]}  Nc6 {[%clk 1:28:12]} 7. Nd5 {[%clk 1:33:27]}  Nf6 {[%clk 1:25:28]} 8. Re1 {[%clk 1:32:44]}  d6 {[%clk 1:24:59]} 9. Nxf6+ {[%clk 1:33:06]}  Qxf6 {[%clk 1:24:45]} 10. c3 {[%clk 1:33:32]}  Be7 {[%clk 1:23:40]} 11. Bc2 {[%clk 1:33:42]}  e5 {[%clk 1:22:31]} 12. h3 {[%clk 1:33:48]}  O-O {[%clk 1:20:06]} 13. a3 {[%clk 1:34:00]}  Qg6 {[%clk 1:15:19]} 14. Kh1 {[%clk 1:33:39]}  Qh5 {[%clk 1:10:24]} 15. Qe2 {[%clk 1:33:18]}  b5 {[%clk 0:57:26]} 16. b4 {[%clk 1:32:41]}  a5 {[%clk 0:45:26]} 17. bxc5 {[%clk 1:25:39]}  dxc5 {[%clk 0:45:30]} 18. Bd1 {[%clk 1:25:38]}  Ba6 {[%clk 0:43:27]} 19. Qe3 {[%clk 1:23:39]}  Qg6 {[%clk 0:43:10]} 20. Bb2 {[%clk 1:19:36]}  c4 {[%clk 0:37:52]} 21. a4 {[%clk 1:19:08]}  Rab8 {[%clk 0:29:34]} 22. axb5 {[%clk 1:18:05]}  Rxb5 {[%clk 0:29:31]} 23. Ba3 {[%clk 1:18:13]}  Bxa3 {[%clk 0:28:58]} 24. Rxa3 {[%clk 1:18:41]}  Qd6 {[%clk 0:28:55]} 25. Ra2 {[%clk 1:17:52]}  Rfb8 {[%clk 0:28:15]} 26. Ba4 {[%clk 1:17:09]}  Rc5 {[%clk 0:26:23]} 27. Rea1 {[%clk 1:16:41]}  Nd8 {[%clk 0:22:00]} 28. Bc2 {[%clk 1:14:07]}  Qc7 {[%clk 0:18:19]} 29. Ng1 {[%clk 1:10:55]}  Ne6 {[%clk 0:15:54]} 30. g3 {[%clk 1:11:08]}  Rd8 {[%clk 0:14:49]} 31. Kg2 {[%clk 1:07:45]}  Rd6 {[%clk 0:12:30]} 32. Rb2 {[%clk 1:05:45]}  Rb5 {[%clk 0:12:15]} 33. Rxb5 {[%clk 1:04:59]}  Bxb5 {[%clk 0:12:39]} 34. Nf3 {[%clk 1:04:49]}  Rd8 {[%clk 0:08:40]} 35. Rb1 {[%clk 1:00:50]}  Rb8 {[%clk 0:07:18]} 36. Qe2 {[%clk 0:57:01]}  Nc5 {[%clk 0:04:07]} 37. Nh2 {[%clk 0:57:01]}  Nb3 {[%clk 0:02:55]} 38. Qd1 {[%clk 0:52:50]}  Bc6 {[%clk 0:02:38]} 39. d3 {[%clk 0:51:48]}  Nc5 {[%clk 0:02:01]} 40. dxc4 {[%clk 0:52:10]}  Nxe4 {[%clk 0:01:56]} 41. Rxb8+ {[%clk 0:52:39]}  Qxb8 {[%clk 0:01:56]} 42. f3 {[%clk 0:53:06]}  Nf6 {[%clk 0:01:56]} 43. Nf1 {[%clk 0:51:25]}  e4 {[%clk 0:29:24]} 44. fxe4 {[%clk 1:15:40]} 1/2-1/2


[Site "http://www.chessbomb.com"]

[Event "World Junior Chess Championship U20 2022"]
[White "Liloni, Francesco Mattia"]
[Black "Gagic, Milan A"]
[WhiteFideId "2872264"]
[BlackFideId "979805"]
[WhiteElo "1876"]
[BlackElo "2125"]
[Result "1-0"]
[Round "03"]
[TimeControl "5400+30"]
[Date "2022.10.13"]
[WhiteClock "0:59:53"]
[BlackClock "0:03:21"]

1. e4 {[%clk 1:28:28]}  d5 {[%clk 1:30:44]} 2. exd5 {[%clk 1:26:25]}  Qxd5 {[%clk 1:31:08]} 3. Nf3 {[%clk 1:26:49]}  Bg4 {[%clk 1:26:29]} 4. Be2 {[%clk 1:27:16]}  Nc6 {[%clk 1:24:43]} 5. O-O {[%clk 1:25:42]}  Nf6 {[%clk 1:24:24]} 6. h3 {[%clk 1:24:31]}  Bh5 {[%clk 1:23:09]} 7. Nc3 {[%clk 1:24:10]}  Qd7 {[%clk 1:21:47]} 8. b4 {[%clk 1:19:07]}  a6 {[%clk 1:07:23]} 9. Rb1 {[%clk 1:17:31]}  e6 {[%clk 1:03:28]} 10. b5 {[%clk 1:17:20]}  axb5 {[%clk 0:59:14]} 11. Rxb5 {[%clk 1:17:40]}  Ra7 {[%clk 0:50:58]} 12. d4 {[%clk 1:11:24]}  Bxf3 {[%clk 0:43:17]} 13. Bxf3 {[%clk 1:10:30]}  Nxd4 {[%clk 0:42:54]} 14. Rxb7 {[%clk 1:10:33]}  Rxb7 {[%clk 0:42:43]} 15. Bxb7 {[%clk 1:10:55]}  Be7 {[%clk 0:42:35]} 16. Be3 {[%clk 1:11:01]}  c5 {[%clk 0:41:53]} 17. Ba6 {[%clk 1:09:22]}  O-O {[%clk 0:42:15]} 18. a4 {[%clk 1:01:58]}  Rd8 {[%clk 0:40:06]} 19. Qb1 {[%clk 0:52:34]}  Qd6 {[%clk 0:35:14]} 20. Bc4 {[%clk 0:51:43]}  Rb8 {[%clk 0:33:58]} 21. Qa2 {[%clk 0:51:49]}  Qe5 {[%clk 0:32:16]} 22. Nb5 {[%clk 0:45:34]}  Nxb5 {[%clk 0:24:38]} 23. Bxb5 {[%clk 0:44:56]}  Bd6 {[%clk 0:21:03]} 24. g3 {[%clk 0:43:13]}  Nh5 {[%clk 0:19:53]} 25. Qa1 {[%clk 0:40:45]}  Qf5 {[%clk 0:16:55]} 26. Qd1 {[%clk 0:41:11]}  Rd8 {[%clk 0:11:44]} 27. Qg4 {[%clk 0:37:26]}  Qe5 {[%clk 0:09:41]} 28. Rd1 {[%clk 0:37:06]}  Nf6 {[%clk 0:08:00]} 29. Qf4 {[%clk 0:36:20]}  Qxf4 {[%clk 0:07:13]} 30. Bxf4 {[%clk 0:35:49]}  Bc7 {[%clk 0:07:05]} 31. Rxd8+ {[%clk 0:35:39]}  Bxd8 {[%clk 0:07:33]} 32. c4 {[%clk 0:34:43]}  Ne4 {[%clk 0:05:59]} 33. Bc6 {[%clk 0:34:20]}  Nc3 {[%clk 0:05:07]} 34. Kf1 {[%clk 0:34:34]}  f6 {[%clk 0:04:08]} 35. Bd2 {[%clk 0:33:52]}  Nb1 {[%clk 0:03:07]} 36. Be1 {[%clk 0:33:50]}  Na3 {[%clk 0:03:14]} 37. Bb5 {[%clk 0:33:49]}  Nc2 {[%clk 0:03:14]} 38. Bd2 {[%clk 0:34:14]}  Nd4 {[%clk 0:03:16]} 39. f4 {[%clk 0:33:15]}  Kf7 {[%clk 0:03:22]} 40. Kf2 {[%clk 0:33:35]}  Ke7 {[%clk 0:01:58]} 41. g4 {[%clk 0:33:32]}  Kd6 {[%clk 0:01:51]} 42. Ke3 {[%clk 0:33:29]}  h5 {[%clk 0:00:37]} 43. gxh5 {[%clk 0:31:08]}  Nf5+ {[%clk 0:23:23]} 44. Ke4 {[%clk 1:01:30]}  Ng3+ {[%clk 0:19:56]} 45. Kf3 {[%clk 1:00:57]}  Nf5 {[%clk 0:20:22]} 46. a5 {[%clk 1:00:28]}  Nd4+ {[%clk 0:19:35]} 47. Ke3 {[%clk 1:00:44]}  Bc7 {[%clk 0:16:55]} 48. a6 {[%clk 1:00:34]}  Bb6 {[%clk 0:17:01]} 49. Ba5 {[%clk 1:00:04]}  Ba7 {[%clk 0:17:26]} 50. Ke4 {[%clk 0:59:51]}  f5+ {[%clk 0:15:24]} 51. Kd3 {[%clk 1:00:13]}  e5 {[%clk 0:13:52]} 52. fxe5+ {[%clk 1:00:28]}  Kxe5 {[%clk 0:14:17]} 53. Bc7+ {[%clk 1:00:51]}  Kf6 {[%clk 0:14:30]} 54. Ke3 {[%clk 0:59:55]}  Ne6 {[%clk 0:12:13]} 55. Bd6 {[%clk 1:00:07]}  Nd4 {[%clk 0:10:37]} 56. Be8 {[%clk 0:59:36]}  Ne6 {[%clk 0:10:17]} 57. h4 {[%clk 0:59:41]}  Nd4 {[%clk 0:10:11]} 58. Bd7 {[%clk 0:59:59]}  g5 {[%clk 0:06:36]} 59. h6 {[%clk 0:59:30]}  gxh4 {[%clk 0:04:59]} 60. Be8 {[%clk 0:59:52]}  f4+ {[%clk 0:03:47]} 61. Bxf4 {[%clk 0:59:53]}  Nf5+ {[%clk 0:03:21]} 62. Kf3 {[%clk 0:59:53]} 1-0


[Site "http://www.chessbomb.com"]